[Event "Hungarian Youth-ch U14 2022"]
[Site "Eger"]
[Date "2022.07.25"]
[Round "3.2"]
[White "Gergely, Daniel"]
[Black "Bodrogi, Bendeguz"]
[Result "1/2-1/2"]
[ECO "A57"]
[WhiteElo "2053"]
[BlackElo "2170"]
[Annotator "TA"]
[PlyCount "60"]
[EventDate "2022.07.21"]
[EventType "tourn"]
[EventCountry "HUN"]
[SourceTitle "playchess.com"]
[Source "ChessBase"]
[SourceQuality "1"]
[TimeControl "40/5400+30:1800+30"]

{[%evp 9,60,66,90,1,79,22,30,27,14,0,0,0,7,-7,0,-22,-18,-14,-16,-27,42,-39,-56,-41,-45,-47,-62,-163,-129,-117,-123,-141,-143,-166,-148,-132,-31,-80,-55,-18,-14,-8,3,9,7,9,35,16,13,0,261,221,222]} 1. d4 {[%emt 0:00:33]} Nf6 {[%emt 0:02:14]} 2. c4 {[%emt 0:00:15]} c5 {[%emt 0:00:20]} 3. d5 {[%emt 0:00:14]} b5 {[%emt 0:00:32]} 4. Qc2 {[%emt 0:00:18]} g6 {[%emt 0:02:38]} 5. e4 {[%emt 0:00:49]} Bg7 {[%emt 0:04:19]} 6. Nc3 {[%emt 0:02:01] A57: Benko/Volga Gambit.} ({Better is} 6. cxb5 $16 d6 7. Nc3) 6... a6 {[%emt 0:10:44]} (6... b4 $11 {keeps the balance.} 7. Nd1 O-O) 7. h3 {[%emt 0:17:31]} (7. cxb5 $16 d6 8. Nf3) 7... d6 {[%emt 0:05:34]} 8. cxb5 {[%emt 0:02:07] White has an edge.} O-O {[%emt 0:00:20] [#]} 9. a4 $146 {[%emt 0:02:03]} ({Predecessor:} 9. Nf3 Nbd7 10. a4 Qa5 11. Bd2 Re8 12. Be2 axb5 13. Bxb5 Ba6 14. O-O Qb6 15. Rfe1 Bxb5 16. Nxb5 Reb8 17. Bc3 {1-0 (38) Ardila,O (1988)-Obad,A (2221) Chess.com INT 2022}) 9... e6 {[%emt 0:03:53]} 10. dxe6 {[%emt 0:03:43]} Bxe6 {[%emt 0:04:30]} 11. Nf3 {[%emt 0:03:54]} d5 {[%emt 0:14:18]} 12. exd5 {[%emt 0:15:23]} Nxd5 {[%emt 0:03:53]} 13. Nxd5 {[%emt 0:09:33]} Bxd5 {[%emt 0:04:03]} 14. Be2 {[%emt 0:01:55]} c4 {[%emt 0:11:16]} (14... axb5 $11 15. O-O bxa4) 15. bxa6 {[%emt 0:07:51]} (15. O-O $14) 15... Nxa6 $15 {[%emt 0:01:28][%cal Bb8a6,Ba6b4,Bb4d3][%mdl 32]} 16. O-O $1 {[%emt 0:02:43]} Nb4 {[%emt 0:01:01][%mdl 1024] Black has compensation.} 17. Qd2 {[%emt 0:03:18]} Qa5 {[%emt 0:02:00]} 18. Qf4 {[%emt 0:04:24]} (18. Ra3 $15) 18... Rae8 {[%emt 0:03:35]} ({Don't do} 18... Nd3 19. Bxd3 cxd3 20. Rd1 $14) 19. Bd1 {[%emt 0:02:25]} ({Not} 19. Bxc4 $2 Re4 20. Qg5 Rxc4 $19) 19... Nd3 {[%emt 0:02:16][%csl LRb2,LRf4]} 20. Qd2 {[%emt 0:02:30]} Qxd2 {[%emt 0:02:25]} 21. Bxd2 {[%emt 0:03:02]} Bxb2 {[%emt 0:02:03]} 22. Rb1 {[%emt 0:00:34] [#]} Rb8 {[%emt 0:08:59]} (22... c3 $1 $17 {[%cal Rc3d2]} 23. Bh6 Ba2) 23. Ne1 {[%emt 0:02:33]} (23. Bc2 $1 $15 {was preferrable.}) 23... Nxe1 {[%emt 0:03:04]} 24. Rxe1 {[%emt 0:03:25]} c3 {[%emt 0:00:05]} 25. Bf4 {[%emt 0:00:38]} Ba2 {[%emt 0:03:23]} 26. Bxb8 {[%emt 0:02:25][%cal Ob8d6]} Bxb1 {[%emt 0:00:19]} (26... Rxb8 $5 27. Bc2 Bxb1 28. Rxb1 Kg7 $11) 27. Be5 {[%emt 0:01:54]} Rc8 {[%emt 0:01:50] [#] Threatens to win with ...Ba3.} 28. Bb3 {[%emt 0:01:07]} (28. Bf3 $5 {[%cal Ra4a5]}) 28... Bf5 {[%emt 0:00:46]} 29. a5 {[%emt 0:03:18][%cal Ba4a5,Ba5a6][%mdl 32] Bd5 is the strong threat.} Rc5 {[%emt 0:02:36][%mdl 8192] Against Bd5} (29... Ba3 $11 30. a6 c2) 30. a6 {[%emt 0:01:35]} Ra5 {[%emt 0:00:21] Quite a comeback for White.  Weighted Error Value: White=0.30/Black=0.42} 1/2-1/2

[Event "Hungarian Youth-ch U14 2022"]
[Site "Eger"]
[Date "2022.07.25"]
[Round "3.3"]
[White "Kolimar, Kristof Pal"]
[Black "Giang, Tran Nam"]
[Result "1/2-1/2"]
[ECO "D02"]
[WhiteElo "2160"]
[BlackElo "2144"]
[Annotator "TA"]
[PlyCount "146"]
[EventDate "2022.07.21"]
[EventType "tourn"]
[EventCountry "HUN"]
[SourceTitle "playchess.com"]
[Source "ChessBase"]
[SourceQuality "1"]
[TimeControl "40/5400+30:1800+30"]

{[%evp 9,146,25,23,15,33,28,35,24,19,27,25,9,15,20,41,33,38,7,23,17,15,19,14,0,34,0,25,7,40,0,56,52,56,49,89,76,92,63,77,40,141,128,122,75,122,65,117,65,73,60,65,48,50,36,49,50,74,74,167,160,181,110,170,169,171,151,178,156,132,133,216,42,52,43,49,38,43,52,51,48,51,54,47,44,50,17,45,35,35,22,22,22,35,35,35,35,41,39,114,114,107,107,107,107,107,107,107,107,125,125,125,125,125,125,125,125,195,51,220,0,195,195,397,195,378,51,375,51,51,51,51,51,58,58,58,37,61,0,66]} 1. d4 {[%emt 0:00:41]} d5 {[%emt 0:00:38]} 2. Nf3 {[%emt 0:00:01]} Nf6 {[%emt 0:00:12]} 3. g3 {[%emt 0:00:07]} c6 {[%emt 0:00:11]} 4. c4 {[%emt 0:00:04]} Bf5 {[%emt 0:01:50]} 5. Nc3 {[%emt 0:00:07]} e6 {[%emt 0:00:38]} 6. Nh4 {[%emt 0:00:04] D11: Slav Defence: 3 Nf3 sidelines and 3...Nf6 4 e3 Bg4.} Bg4 {[%emt 0:01:38]} 7. Qb3 {[%emt 0:00:07]} Qb6 {[%emt 0:05:04]} 8. h3 {[%emt 0:00:07] White is slightly better.} Bh5 {[%emt 0:01:10]} 9. g4 {[%emt 0:00:06]} Bg6 {[%emt 0:01:28]} 10. Nxg6 {[%emt 0:00:04]} hxg6 {[%emt 0:00:26]} 11. Bg2 {[%emt 0:00:03] [#]} dxc4 $146 {[%emt 0:07:45]} ({Predecessor:} 11... Nbd7 12. Bf4 Be7 13. c5 Qa6 14. O-O b6 15. cxb6 axb6 16. e4 O-O 17. exd5 Nxd5 18. Nxd5 cxd5 {½-½ (46) Cheparinov,I (2709)-Antipov,M (2589) St Petersburg 2018}) 12. Qxc4 {[%emt 0:00:19]} Qa6 {[%emt 0:04:28]} 13. b3 {[%emt 0:15:48]} Nd5 $1 {[%emt 0:02:55]} 14. Bd2 {[%emt 0:09:54][%cal Rc3d5]} (14. Bxd5 exd5 15. Qxa6 Nxa6 $15) 14... Nb6 {[%emt 0:07:27]} 15. Qxa6 {[%emt 0:00:03]} Nxa6 {[%emt 0:00:09]} 16. e3 {[%emt 0:06:08]} Be7 {[%emt 0:01:29]} 17. Ke2 {[%emt 0:01:52]} Rd8 {[%emt 0:03:22]} 18. a3 {[%emt 0:05:25]} (18. f4 {is interesting.} Nd5 19. h4 Ba3 20. Ne4) 18... Nc7 {[%emt 0:03:48]} 19. Rhc1 {[%emt 0:09:12]} O-O {[%emt 0:04:22]} (19... Nbd5 $11) 20. b4 $14 {[%emt 0:14:39][%cal Ob4b5]} Nbd5 {[%emt 0:15:50]} 21. Ne4 {[%emt 0:02:15]} Na6 {[%emt 0:13:33]} 22. Rab1 {[%emt 0:06:20]} Rb8 {[%emt 0:03:55]} 23. Be1 {[%emt 0:03:13]} Rfc8 {[%emt 0:03:24]} 24. Nd2 {[%emt 0:00:55]} b6 {[%emt 0:02:38]} (24... g5 $14) 25. Nc4 {[%emt 0:03:39]} f6 {[%emt 0:02:45] Inhibits Ne5.} 26. Bd2 {[%emt 0:03:07]} (26. g5 $142) 26... Rd8 {[%emt 0:05:01]} (26... g5 $142) 27. Rb3 {[%emt 0:08:54]} (27. g5 $16) 27... Rbc8 {[%emt 0:00:45]} (27... g5 $1 $14) 28. Nb2 {[%emt 0:01:28]} (28. f4 $16) 28... g5 {[%emt 0:03:18]} 29. Ke1 {[%emt 0:01:38]} Kf7 {[%emt 0:00:54]} 30. Bf1 {[%emt 0:00:06]} Nb8 {[%emt 0:00:15]} 31. a4 {[%emt 0:01:12]} Rc7 {[%emt 0:01:07]} 32. Nd3 {[%emt 0:00:41]} Rcd7 {[%emt 0:00:33]} 33. b5 {[%emt 0:03:11]} c5 {[%emt 0:01:27]} (33... Rc8 $16) 34. dxc5 $18 {[%emt 0:01:00]} bxc5 {[%emt 0:00:05]} 35. Nxc5 {[%emt 0:03:36]} (35. a5 $18) 35... Rc7 {[%emt 0:00:34]} (35... Bxc5 $16 36. Rxc5 Nb6) 36. Nd3 {[%emt 0:00:20]} Rxc1+ {[%emt 0:00:07]} 37. Nxc1 {[%emt 0:00:08]} Rc8 {[%emt 0:00:12]} 38. Kd1 {[%emt 0:00:26]} Nd7 {[%emt 0:00:19]} 39. Nd3 {[%emt 0:01:30]} N5b6 {[%emt 0:02:22] [#]} (39... Rc4 $16) 40. Nb2 $2 {[%emt 0:00:00]} (40. a5 $1 $18 {[%cal Ra5b6]}) 40... Nc5 $14 {[%emt 0:00:00][%csl LRa4,LRb3]} 41. Rc3 {[%emt 0:03:20]} Rd8 {[%emt 0:02:42]} 42. Bg2 {[%emt 0:02:01] Against Ne4} Nbxa4 {[%emt 0:04:37]} 43. Nxa4 {[%emt 0:01:09]} Nxa4 {[%emt 0:00:07]} 44. Rc7 {[%emt 0:00:03] Strongly threatening Kc2.} Nb6 {[%emt 0:00:24]} 45. Ke2 {[%emt 0:06:14]} ({Reject} 45. Rxa7 Nc4 46. Rc7 (46. Ra2 Bb4 $17) 46... Nxd2 $17) 45... Rd7 {[%emt 0:00:50]} 46. Rxd7 {[%emt 0:06:16]} Nxd7 {[%emt 0:00:02][%mdl 4096] Endgame KBB-KBN} 47. Kd3 {[%emt 0:00:38]} Bc5 {[%emt 0:02:26]} 48. Kc4 {[%emt 0:02:23] Black must now prevent Bc6.} Bb6 {[%emt 0:02:41]} 49. Bb4 {[%emt 0:00:17]} Ne5+ {[%emt 0:03:28]} 50. Kc3 {[%emt 0:02:49]} g6 51. f4 {[%emt 0:00:01]} gxf4 {[%emt 0:02:14]} 52. exf4 Nd7 53. Bc6 {[%emt 0:01:12]} Nf8 {[%emt 0:03:01]} (53... Nc5 $14) 54. Bd6 $16 {[%emt 0:00:47]} Nh7 {[%emt 0:04:54]} 55. Kc4 {[%emt 0:01:57]} Nf8 {[%emt 0:00:46]} 56. Kd3 {[%emt 0:04:25]} Nh7 {[%emt 0:00:26]} 57. Bd7 {[%emt 0:00:15]} Nf8 {[%emt 0:00:27] [#]} 58. Bc8 Ke8 {[%cal Oe8d8]} 59. h4 {[%emt 0:00:40]} Kf7 {[%emt 0:03:01]} 60. h5 {[%emt 0:02:13]} gxh5 {[%emt 0:00:32]} 61. gxh5 {[%emt 0:00:01]} Nh7 {[%emt 0:00:26]} 62. Ke4 {[%emt 0:02:21]} Bf2 {[%emt 0:01:53]} (62... f5+ $16 63. Ke5 Nf8 64. Bxf8 Kxf8 65. Kxe6 (65. Bxe6 Kg7 $16) 65... Kg7) 63. Kf3 {[%emt 0:01:31]} (63. h6 $18) 63... Bb6 $2 {[%emt 0:00:09]} ({Better is} 63... Bd4 $1 $14) 64. Ke4 {[%emt 0:01:09]} Bf2 $1 {[%emt 0:00:08]} 65. h6 {[%emt 0:00:58] And now f5 would win.} Bb6 $2 {[%emt 0:00:18]} (65... f5+ {keeps fighting.} 66. Ke5 Ng5) 66. Bd7 {[%emt 0:00:46]} (66. f5 $142 Ng5+ 67. Kd3 exf5 68. Bxf5) 66... Bf2 $2 {[%emt 0:00:39]} (66... f5+ 67. Ke5 Nf8 68. Bxf8 Kxf8 69. Kxe6 Bd4 70. Kxf5 Bc3) 67. Kd3 $2 {[%emt 0:00:15]} (67. f5 $18 Ng5+ 68. Kf4 exf5 69. Kxf5) 67... Bb6 $2 {[%emt 0:00:39][%mdl 8192]} ({Black should try} 67... f5 $1 $14) 68. Kc4 $2 {[%emt 0:00:12]} (68. f5 $18 exf5 69. Bxf5) 68... f5 $1 $14 {[%emt 0:00:52]} 69. Be5 {[%emt 0:00:30]} Nf8 {[%emt 0:00:44]} 70. Bc8 {[%emt 0:00:13]} Nh7 {[%emt 0:00:13]} 71. Bd4 {[%emt 0:00:55]} Nf6 {[%emt 0:00:58]} 72. Bc5 {[%emt 0:01:12]} Nh7 {[%emt 0:00:34]} ({Less strong is} 72... Bxc5 73. Kxc5 Ne4+ 74. Kd4 $16) 73. Bd4 {[%emt 0:00:59] White is more active.} (73. Bd6 $14) 73... Nf8 {[%emt 0:00:26] Black defended with fortune.  Weighted Error Value: White=0.17 (very precise) /Black=0.20 (precise)} (73... Nf6 $1 $11) 1/2-1/2

[Event "Hungarian Youth-ch U14 2022"]
[Site "Eger"]
[Date "2022.07.25"]
[Round "3.4"]
[White "Szakmary, Domonkos"]
[Black "Csernyik, Mark"]
[Result "0-1"]
[ECO "B30"]
[WhiteElo "1967"]
[BlackElo "2022"]
[Annotator "TA"]
[PlyCount "44"]
[EventDate "2022.07.21"]
[EventType "tourn"]
[EventCountry "HUN"]
[SourceTitle "playchess.com"]
[Source "ChessBase"]
[SourceQuality "1"]
[TimeControl "40/5400+30:1800+30"]

{[%evp 11,44,16,17,0,24,0,0,0,50,20,75,0,0,0,0,0,0,-44,-2,-105,-98,-157,-82,-145,-140,-576,-644,-2648,-1686,-1687,-1676,-1605,-1591,-1458,-1418]} 1. e4 {[%emt 0:00:32]} c5 {[%emt 0:00:34]} 2. Nf3 {[%emt 0:00:04]} Nc6 {[%emt 0:00:07]} 3. Bb5 {[%emt 0:02:12]} d6 {[%emt 0:04:30]} 4. Bxc6+ {[%emt 0:01:31]} bxc6 {[%emt 0:00:08]} 5. O-O {[%emt 0:00:38]} Bg4 {[%emt 0:01:12]} 6. d3 {[%emt 0:04:46]} Nf6 {[%emt 0:02:11]} 7. b3 {[%emt 0:07:41] B51: Sicilian: Moscow Variation (3 Bb5+) without 3...Bd7.} h6 {[%emt 0:04:28]} 8. Bb2 {[%emt 0:03:11]} e5 {[%emt 0:01:25]} 9. Nbd2 {[%emt 0:04:53] [#] The position is equal.} g5 $146 {[%emt 0:01:03]} (9... Nd7 $11) ({Predecessor:} 9... Be7 10. h3 Bh5 11. c4 Qd7 12. Re1 O-O 13. Qc2 Nh7 14. Qd1 Ng5 15. Nxe5 dxe5 16. Qxh5 Qxd3 {1-0 (29) Plutaite,A (1363)-Koliasnikovas,D Panevezys 2016}) 10. c3 {[%emt 0:09:24]} Bh5 {[%emt 0:03:04]} (10... Bg7 $11 {remains equal.}) 11. h3 {[%emt 0:10:41]} ({White should try} 11. d4 $16) 11... g4 $11 {[%emt 0:01:49]} 12. hxg4 {[%emt 0:00:02]} Bxg4 {[%emt 0:00:15]} 13. d4 {[%emt 0:03:01]} Rg8 {[%emt 0:02:38]} 14. dxe5 {[%emt 0:11:25]} dxe5 {White must now prevent ...Nh5.} 15. Re1 {[%emt 0:09:52] [#]} (15. Kh1 $11) 15... Nh5 $1 $17 {[%emt 0:02:45]} 16. c4 {[%emt 0:08:27]} (16. g3 $142) 16... Bd6 {[%emt 0:02:12]} (16... Nf4 $142 {Hoping for ...Bxf3.} 17. g3 {[#]} (17. Bxe5 Bxf3 18. Nxf3 Nxg2 $17) 17... f6 $1) 17. Nf1 {[%emt 0:06:00]} (17. g3 $142) 17... Qf6 {[%emt 0:02:58] Threatens to win with ...Bxf3.} 18. N1h2 {[%emt 0:01:49][%mdl 8192] This move loses the game for White.} (18. Re3 $17) 18... Bh3 $1 $19 {[%emt 0:00:40] Black is clearly winning.} 19. g3 {[%emt 0:00:41] [#]} Nxg3 {[%emt 0:00:13][%mdl 512]} 20. fxg3 {[%emt 0:00:04]} Rxg3+ {[%emt 0:00:07]} 21. Kf2 {[%emt 0:00:12]} Rg2+ {[%emt 0:00:14][%mdl 64] Skewer} 22. Ke3 {[%emt 0:00:05]} O-O-O {[%emt 0:02:21] Weighted Error Value: White=1.31/Black=0.43} 0-1

[Event "Hungarian Youth-ch U14 2022"]
[Site "Eger"]
[Date "2022.07.25"]
[Round "3.5"]
[White "Turcsanyi, Vince Gergo"]
[Black "Matyassy, Lazar"]
[Result "1/2-1/2"]
[ECO "B63"]
[WhiteElo "2117"]
[BlackElo "2132"]
[Annotator "TA"]
[PlyCount "81"]
[EventDate "2022.07.21"]
[EventType "tourn"]
[EventCountry "HUN"]
[SourceTitle "playchess.com"]
[Source "ChessBase"]
[SourceQuality "1"]
[TimeControl "40/5400+30:1800+30"]

{[%evp 18,81,9,6,22,12,16,-1,-23,-40,-31,-37,-40,-32,-29,-33,-38,-31,-6,-7,-11,-30,-20,-50,-43,-43,-40,-55,-51,-59,-20,-25,-12,-78,-79,-70,-16,-12,0,-80,-72,-78,-71,-78,-64,-68,-72,-68,-64,-174,-45,-319,-311,-286,-254,-1044,-1013,-1004,-992,-684,-616,-1477,-84,-84,-84,-84]} 1. e4 {[%emt 0:02:02]} c5 {[%emt 0:00:46]} 2. Nf3 {[%emt 0:00:24]} d6 {[%emt 0:00:07]} 3. d4 {[%emt 0:00:21]} cxd4 {[%emt 0:00:07]} 4. Nxd4 {[%emt 0:00:07]} Nf6 {[%emt 0:00:07]} 5. Nc3 {[%emt 0:00:11]} Nc6 {[%emt 0:00:07]} 6. Bg5 {[%emt 0:00:11]} e6 {[%emt 0:00:09]} 7. Qd2 {[%emt 0:00:47]} Be7 {[%emt 0:00:08]} 8. O-O-O {[%emt 0:01:17]} a6 {[%emt 0:00:16]} 9. f3 {[%emt 0:00:24]} Nxd4 {[%emt 0:00:40]} 10. Qxd4 {[%emt 0:00:15]} b5 {[%emt 0:00:05] B66: Sicilian: Richter-Rauzer: 7...a6 8 0-0-0 h6.} 11. Kb1 {[%emt 0:06:13] Nowadays more popular than 11.h4.} Bb7 {[%emt 0:01:48]} 12. g4 {[%emt 0:06:50] [#]} h6 $146 {[%emt 0:03:14] The position is equal.} ({Predecessor:} 12... O-O 13. h4 Rc8 14. Bd3 Qc7 15. h5 h6 16. Bh4 Qc5 17. Ne2 Rfd8 18. Qg1 Qxg1 19. Rdxg1 Kf8 20. g5 hxg5 21. Bxg5 Ng8 {1-0 (67) Agmanov,Z (2402)-Arjun,K (2482) Abu Dhabi 2019}) 13. Bxf6 {[%emt 0:19:28]} (13. Bh4 {is more complex.} O-O 14. Bd3 Rc8 15. Bg3) 13... Bxf6 {[%emt 0:11:41]} 14. Qxd6 {[%emt 0:02:56]} Qxd6 {[%emt 0:00:06]} 15. Rxd6 {[%emt 0:00:11]} Ke7 {[%emt 0:00:10]} 16. Rd3 {[%emt 0:14:11]} h5 {[%emt 0:00:39]} 17. gxh5 {[%emt 0:15:05]} Bc6 {[%emt 0:04:28]} 18. Ne2 {[%emt 0:02:20]} Rxh5 {[%emt 0:02:17][%cal Bh8h5,Bh5g5,Bg5c5][%mdl 32]} 19. Bg2 {[%emt 0:05:56]} Rg5 {[%emt 0:05:26][%mdl 1024] Black has compensation.} 20. Rg1 {[%emt 0:00:31]} Rh8 {[%emt 0:02:59]} 21. h3 {[%emt 0:02:04]} b4 {[%emt 0:19:21]} 22. Re3 {[%emt 0:04:52]} Bb5 {[%emt 0:22:21] This bishop pair is nice.} 23. f4 {[%emt 0:00:18]} Rc5 {[%emt 0:09:19]} (23... Rg6 $5 {[%cal Rf6h4]} 24. f5 Rgh6 $15) 24. Rd1 {[%emt 0:12:15]} Rhc8 {[%emt 0:01:22]} 25. Rd2 {[%emt 0:00:38]} (25. e5 $11 Bh4 26. Bf1) 25... e5 $1 $17 {[%emt 0:01:04]} 26. Rf3 {[%emt 0:00:55]} Bxe2 {[%emt 0:01:26]} (26... Bh4 $15 27. Rf1 exf4) 27. Rxe2 $11 {[%emt 0:00:07]} Rd8 $40 {[%emt 0:00:08][%cal Rd8d1][%mdl 128] White needs to defend precisely.} 28. Rd3 {[%emt 0:02:34] Against Rd1+} (28. a3 $11 {remains equal.}) 28... Rxd3 {[%emt 0:00:07]} 29. cxd3 {[%emt 0:00:01]} exf4 $17 {[%emt 0:00:11][%mdl 4096] Endgame KRB-KRB} 30. Bf3 {[%emt 0:00:41]} Bd4 {[%emt 0:00:19]} 31. Rc2 {[%emt 0:00:55]} Kf6 {[%emt 0:02:43] White must now prevent ...Rxc2.} 32. Rxc5 {[%emt 0:00:53]} Bxc5 {[%emt 0:00:05] KB-KB} 33. Kc2 {[%emt 0:00:29]} ({White must play} 33. h4 $1 $15) 33... Bd4 {[%emt 0:00:29]} ({Black should try} 33... Kg5 $1 $19 34. Kb3 Kh4) 34. a3 $2 {[%emt 0:00:32][%mdl 8192]} (34. h4 $1 $15) 34... bxa3 $19 {[%emt 0:00:22]} 35. bxa3 {[%emt 0:00:08] [#]} Kg5 {[%emt 0:00:05]} 36. Kd2 $2 {[%emt 0:00:54]} (36. Kb3) 36... Kh4 {[%emt 0:00:08]} 37. Bg4 {[%emt 0:00:29]} Kg3 {[%emt 0:00:09] Hoping for ...f3.} 38. Ke2 {[%emt 0:00:06]} a5 {[%emt 0:00:45]} 39. a4 {[%emt 0:00:05] [#]} g6 $2 {[%emt 0:01:28]} (39... Kg2 $1 $19 {has better winning chances. ...g6 is the strong threat.} 40. e5 Bxe5) 40. Kf1 $17 {[%emt 0:00:00]} f6 {[%emt 0:00:00]} 41. Be6 {[%emt 0:04:19] Weighted Error Value: White=0.71/Black=0.30} 1/2-1/2

[Event "Hungarian Youth-ch U14 2022"]
[Site "Eger"]
[Date "2022.07.25"]
[Round "3.6"]
[White "Nandin-Erdene, Davaademberel"]
[Black "Lazsadi, Kerka Lilla"]
[Result "1-0"]
[ECO "A03"]
[WhiteElo "1789"]
[BlackElo "1674"]
[Annotator "NA RC COMBH"]
[PlyCount "85"]
[EventDate "2022.07.21"]
[EventType "tourn"]
[EventCountry "HUN"]
[SourceTitle "playchess.com"]
[Source "ChessBase"]
[SourceQuality "1"]
[TimeControl "40/5400+30:1800+30"]

1. f4 {[%emt 0:00:39]} d5 {[%emt 0:00:55]} 2. Nf3 {[%emt 0:00:07]} g6 {[%emt 0:00:39]} 3. g3 {[%emt 0:00:09]} Bg7 {[%emt 0:00:08]} 4. Bg2 {[%emt 0:00:07]} Nh6 {[%emt 0:00:31]} 5. O-O {[%emt 0:01:32]} O-O {[%emt 0:00:10]} 6. d3 {[%emt 0:00:14]} c5 {[%emt 0:02:18]} 7. c3 {[%emt 0:01:06]} Nc6 {[%emt 0:00:34]} 8. Na3 {[%emt 0:01:38]} b6 {[%emt 0:04:57]} 9. Qc2 {[%emt 0:03:13]} Bb7 {[%emt 0:00:52]} 10. e4 {[%emt 0:00:54]} d4 {[%emt 0:02:08]} 11. Rb1 {[%emt 0:03:50]} e5 {[%emt 0:10:02]} 12. fxe5 {[%emt 0:17:20]} Ng4 {[%emt 0:00:46]} 13. e6 {[%emt 0:00:20]} fxe6 {[%emt 0:06:50]} 14. Bg5 {[%emt 0:17:47]} Bf6 {[%emt 0:02:55]} 15. Qd2 {[%emt 0:03:39]} Bxg5 {[%emt 0:02:48]} 16. Nxg5 {[%emt 0:00:59]} Qe7 {[%emt 0:01:05]} 17. Nc4 {[%emt 0:13:01]} Ne3 {[%emt 0:07:32]} 18. Nxe3 {[%emt 0:05:44]} Qxg5 {[%emt 0:00:43]} 19. Nc4 {[%emt 0:00:31]} Qxd2 {[%emt 0:00:27]} 20. Nxd2 {[%emt 0:00:04]} Ne5 {[%emt 0:03:12]} 21. cxd4 {[%emt 0:01:08]} cxd4 {[%emt 0:00:11]} 22. Nb3 {[%emt 0:02:37]} Rad8 {[%emt 0:01:04]} 23. Bh3 {[%emt 0:04:05]} Rd6 {[%emt 0:02:35]} 24. Rbd1 {[%emt 0:04:42]} Ba6 {[%emt 0:01:43]} 25. Nc1 {[%emt 0:00:54]} Rxf1+ {[%emt 0:01:26]} 26. Kxf1 {[%emt 0:00:28]} g5 {[%emt 0:01:38]} 27. Ke2 {[%emt 0:01:33]} g4 {[%emt 0:00:11]} 28. Bg2 {[%emt 0:00:11]} Rc6 {[%emt 0:01:57]} 29. Kd2 {[%emt 0:00:21]} Kg7 {[%emt 0:00:31]} 30. Ne2 {[%emt 0:02:50]} Rd6 {[%emt 0:07:24]} 31. Nf4 {[%emt 0:00:16]} Nc6 {[%emt 0:06:44]} 32. a3 {[%emt 0:02:11]} Ne7 {[%emt 0:02:10]} 33. e5 {[%emt 0:01:18]} Rd7 {[%emt 0:04:30]} 34. Nxe6+ {[%emt 0:00:12]} Kf7 {[%emt 0:00:19]} 35. Nf4 {[%emt 0:00:34]} Rc7 {[%emt 0:00:22]} 36. Rf1 {[%emt 0:02:41]} Ke8 {[%emt 0:00:58]} 37. Ne6 {[%emt 0:01:11]} Rc8 {[%emt 0:01:52]} 38. Rf8+ {[%emt 0:03:17]} Kd7 {[%emt 0:00:09]} 39. Rxc8 {[%emt 0:00:08]} Bxc8 {[%emt 0:00:40]} 40. Nxd4 {[%emt 0:00:00]} Ng6 {[%emt 0:00:00]} 41. Be4 {[%emt 0:10:27]} Nxe5 {[%emt 0:01:41]} 42. Bxh7 {[%emt 0:00:22]} Bb7 {[%emt 0:00:22]} 43. Ke3 {[%emt 0:01:00]} 1-0

[Event "Hungarian Youth-ch U14 2022"]
[Site "Eger"]
[Date "2022.07.25"]
[Round "3.7"]
[White "Karacsonyi, Luca"]
[Black "Kovacs, Reka"]
[Result "0-1"]
[ECO "C50"]
[WhiteElo "1789"]
[BlackElo "1716"]
[Annotator "NA RC COMBH"]
[PlyCount "106"]
[EventDate "2022.07.21"]
[EventType "tourn"]
[EventCountry "HUN"]
[SourceTitle "playchess.com"]
[Source "ChessBase"]
[SourceQuality "1"]
[TimeControl "40/5400+30:1800+30"]

1. e4 {[%emt 0:00:33]} e5 {[%emt 0:00:33]} 2. Nf3 {[%emt 0:00:05]} Nc6 {[%emt 0:00:06]} 3. Bc4 {[%emt 0:00:07]} Nf6 {[%emt 0:00:07]} 4. d3 {[%emt 0:00:11]} Bc5 {[%emt 0:00:15]} 5. c3 {[%emt 0:00:15]} a6 {[%emt 0:00:21]} 6. Nbd2 {[%emt 0:00:26]} d6 {[%emt 0:00:32]} 7. Bb3 {[%emt 0:00:14]} Ba7 {[%emt 0:01:08]} 8. h3 {[%emt 0:03:41]} Be6 {[%emt 0:05:42]} 9. Bc2 {[%emt 0:01:49]} h6 {[%emt 0:05:39]} 10. Nf1 {[%emt 0:02:27]} d5 {[%emt 0:08:11]} 11. exd5 {[%emt 0:16:35]} Nxd5 {[%emt 0:01:10]} 12. Qe2 {[%emt 0:03:10]} Qd6 {[%emt 0:05:21]} 13. Ng3 {[%emt 0:06:33]} O-O-O {[%emt 0:01:26]} 14. Bd2 {[%emt 0:09:12]} Rhe8 {[%emt 0:06:31]} 15. O-O-O {[%emt 0:09:57]} f5 {[%emt 0:11:36]} 16. Nh5 {[%emt 0:16:04]} Re7 {[%emt 0:08:44]} 17. Ba4 {[%emt 0:13:26]} b5 {[%emt 0:19:25]} 18. Bb3 {[%emt 0:01:46]} Nf4 {[%emt 0:04:25]} 19. Bxe6+ {[%emt 0:03:37]} Nxe6 {[%emt 0:00:36]} 20. Be3 {[%emt 0:03:09]} Nf4 {[%emt 0:03:41]} 21. Bxf4 {[%emt 0:00:45]} exf4 {[%emt 0:00:02]} 22. Qd2 {[%emt 0:00:46]} Rde8 {[%emt 0:02:05]} 23. Rhe1 {[%emt 0:02:07]} g5 {[%emt 0:00:34]} 24. g4 {[%emt 0:02:21]} fxg4 {[%emt 0:01:09]} 25. hxg4 {[%emt 0:00:17]} Kb7 {[%emt 0:07:42]} 26. d4 {[%emt 0:00:58]} b4 {[%emt 0:02:09]} 27. Kb1 {[%emt 0:01:26]} bxc3 {[%emt 0:00:32]} 28. bxc3 {[%emt 0:00:16]} Qg6+ {[%emt 0:00:50]} 29. Ka1 {[%emt 0:00:32]} Qd6 {[%emt 0:01:42]} 30. Rb1+ {[%emt 0:00:57]} Bb6 {[%emt 0:00:59]} 31. Ng7 {[%emt 0:01:44]} Rxe1 {[%emt 0:01:22]} 32. Rxe1 {[%emt 0:00:06]} Rxe1+ {[%emt 0:00:10]} 33. Qxe1 {[%emt 0:00:19]} Nxd4 {[%emt 0:00:58]} 34. Ne8 {[%emt 0:01:05]} Nc2+ {[%emt 0:00:35]} 35. Kb1 {[%emt 0:00:12]} Nxe1 {[%emt 0:00:15]} 36. Nxd6+ {[%emt 0:00:05]} cxd6 {[%emt 0:00:01]} 37. Nxe1 {[%emt 0:00:09]} Bxf2 {[%emt 0:00:07]} 38. Nf3 {[%emt 0:00:11]} Kc6 {[%emt 0:00:26]} 39. Kc2 {[%emt 0:00:06]} Kd5 {[%emt 0:00:12]} 40. Kd3 {[%emt 0:00:00]} Bb6 {[%emt 0:00:00]} 41. a4 {[%emt 0:01:27]} Ke6 {[%emt 0:10:16]} 42. Kc4 {[%emt 0:02:05]} d5+ {[%emt 0:01:01]} 43. Kb4 {[%emt 0:00:13]} Kd6 {[%emt 0:00:31]} 44. Kb3 {[%emt 0:00:31]} Bc5 {[%emt 0:05:01]} 45. Kc2 {[%emt 0:00:53]} Ke6 {[%emt 0:01:13]} 46. Kd2 {[%emt 0:00:37]} Kf6 {[%emt 0:00:11]} 47. Kd3 {[%emt 0:00:07]} h5 {[%emt 0:01:20]} 48. gxh5 {[%emt 0:00:07]} g4 {[%emt 0:00:10]} 49. Nh2 {[%emt 0:00:12]} g3 {[%emt 0:00:57]} 50. Ng4+ {[%emt 0:00:06]} Kg5 {[%emt 0:01:59]} 51. h6 {[%emt 0:00:09]} g2 {[%emt 0:00:18]} 52. h7 {[%emt 0:00:18]} g1=Q {[%emt 0:00:07]} 53. h8=Q {[%emt 0:00:05]} Qd1# {[%emt 0:00:09]} 0-1